fUST/lending_fUST_20260225
["ID","MTS","AMOUNT","RATE_DAILY","PERIOD"]
[406611800,1771974638592,-1205.86134757,0.00013426,2]
[406611801,1771974638602,-150.0,0.0001363,2]
[406611802,1771974638612,-380.47222469,0.00013699,2]
[406611803,1771974638621,-300.0,0.00013751,2]
[406611804,1771974638631,-300.0,0.00013751,2]
[406611805,1771974638641,-300.0,0.00013751,2]
[406611806,1771974638651,-300.0,0.00013751,2]
[406611807,1771974638661,-1200.0,0.00013751,2]
[406611808,1771974638671,-596.32224467,0.00013753,2]
[406611809,1771974638681,-6017.37885634,0.00013753,2]
[406611810,1771974638690,-420.0,0.00015069,2]
[406611811,1771974638700,-420.0,0.00015069,2]
[406611812,1771974638710,-417.0,0.00015069,2]
[406611813,1771974638719,-17849.94878452,0.00015069,2]
[406611814,1771974638731,-2420.55422992,0.00015069,2]
[406611815,1771974638742,-1524.19963547,0.00015069,2]
[406611816,1771974638754,-1476.03254611,0.00015069,2]
[406615921,1771975837681,-5000.0,0.00012205,2]
[406615922,1771975837691,-557.0,0.00012328,2]
[406615923,1771975837700,-993.51,0.00012329,2]
[406615924,1771975837710,-206.98,0.00012329,2]
[406615925,1771975837719,-172.49,0.00012329,2]
[406615926,1771975837728,-862.45,0.00012329,2]
[406615927,1771975837738,-150.0,0.00012329,2]
[406615928,1771975837748,-594.0,0.00012329,2]
[406615929,1771975837759,-213.0,0.00013205,2]
[406615930,1771975837768,-300.0,0.00013205,2]
[406615931,1771975837778,-483.23588056,0.00013206,2]
[406615932,1771975837787,-483.23588055,0.00013206,2]
[406615933,1771975837798,-15811.5003342,0.00013278,2]
[406615934,1771975837808,-30364.73905117,0.00014329,2]
[406615935,1771975837826,-8507.80471758,0.00014329,2]
[406615936,1771975837837,-177.0,0.00014329,2]
[406615937,1771975837847,-420.0,0.00014479,2]
[406615938,1771975837858,-150.0,0.0001463,2]
[406615939,1771975837868,-150.0,0.0001463,2]
[406615940,1771975837877,-150.0,0.0001463,2]
[406615941,1771975837887,-500.0,0.0001463,2]
[406615942,1771975837898,-150.0,0.0001463,2]
[406615943,1771975837907,-500.0,0.0001463,2]
[406615944,1771975837917,-160.39237972,0.0001463,2]
[406615945,1771975837926,-543.0,0.0001463,2]
[406615946,1771975837936,-500.0,0.0001463,2]
[406615947,1771975837945,-500.0,0.00014683,2]
[406615948,1771975837955,-500.0,0.00014683,2]
[406615949,1771975837964,-500.0,0.00014683,2]
[406615950,1771975837973,-500.0,0.00014683,2]
[406615951,1771975837982,-500.0,0.00014683,2]
[406615952,1771975837991,-500.0,0.00014683,2]
[406615953,1771975838000,-500.0,0.00014683,2]
[406615954,1771975838011,-291.45929084,0.00014683,2]
[406615955,1771975838020,-500.0,0.00014683,2]
[406615956,1771975838030,-500.0,0.00014683,2]
[406615957,1771975838041,-500.0,0.00014683,2]
[406615958,1771975838056,-500.0,0.00014683,2]
[406615959,1771975838066,-500.0,0.00014683,2]
[406615960,1771975838076,-500.0,0.00014684,2]
[406615961,1771975838086,-500.0,0.00014684,2]
[406615962,1771975838285,-500.0,0.00014684,2]
[406615963,1771975838296,-500.0,0.00014684,2]
[406615964,1771975838306,-150.0,0.00014684,2]
[406615965,1771975838316,-500.0,0.00014684,2]
[406615966,1771975838327,-150.0,0.00014684,2]
[406615967,1771975838336,-500.0,0.00014684,2]
[406615968,1771975838346,-177.22193423,0.00014684,2]
[406615969,1771975838358,-320.06227793,0.00014685,2]
[406615970,1771975838370,-179.93772207,0.00014685,2]
[406615971,1771975838381,-184.8200238,0.00014685,2]
[406615972,1771975838390,-150.0,0.00014685,2]
[406615973,1771975838399,-181.02041037,0.00014685,2]
[406615974,1771975838408,-500.0,0.00014685,2]
[406615975,1771975838418,-500.0,0.00014685,2]
[406615976,1771975838430,-81.99560482,0.00014685,2]
[406615977,1771975838449,-461.00439518,0.00014685,2]
[406615978,1771975838459,-500.0,0.00014685,2]
[406615979,1771975838468,-500.0,0.00014739,2]
[406615980,1771975838477,-500.0,0.00014739,2]
[406615981,1771975838490,-500.0,0.00014739,2]
[406615982,1771975838499,-500.0,0.00014739,2]
[406615983,1771975838509,-150.0,0.00014739,2]
[406615984,1771975838518,-502.18811091,0.00014739,2]
[406615985,1771975838528,-263.01062012,0.00014739,2]
[406615986,1771975838537,-500.0,0.00014739,2]
[406615987,1771975838546,-150.0,0.0001474,2]
[406615988,1771975838555,-500.0,0.0001474,2]
[406615989,1771975838565,-500.0,0.0001474,2]
[406615990,1771975838574,-543.0,0.0001474,2]
[406615991,1771975838583,-500.0,0.0001474,2]
[406615992,1771975838593,-692.0,0.00014791,2]
[406615993,1771975838603,-500.0,0.00014792,2]
[406615994,1771975838613,-500.0,0.00014792,2]
[406615995,1771975838623,-500.0,0.00014792,2]
[406615996,1771975838632,-500.0,0.00014792,2]
[406615997,1771975838642,-500.0,0.00014792,2]
[406615998,1771975838652,-500.0,0.00014792,2]
[406615999,1771975838661,-500.0,0.00014792,2]
[406616000,1771975838671,-500.0,0.00014792,2]
[406616001,1771975838681,-500.0,0.00014792,2]
[406616002,1771975838690,-500.0,0.00014792,2]
[406616003,1771975838699,-500.0,0.00014792,2]
[406616004,1771975838709,-500.0,0.00014792,2]
[406616005,1771975838718,-500.0,0.00014792,2]
[406616006,1771975838728,-500.0,0.00014792,2]
[406616007,1771975838738,-552.79301951,0.00014792,2]
[406616008,1771975838748,-500.0,0.00014792,2]
[406616009,1771975838758,-500.0,0.00014792,2]
[406616010,1771975838768,-500.0,0.00014792,2]
[406616011,1771975838777,-500.0,0.00014792,2]
[406616012,1771975838786,-500.0,0.00014792,2]
[406616013,1771975838796,-500.0,0.00014792,2]
[406616014,1771975838805,-500.0,0.00014792,2]
[406616015,1771975838816,-234.05328281,0.00014792,2]
[406616016,1771975838827,-500.0,0.00014792,2]
[406616017,1771975838839,-500.0,0.00014792,2]
[406616018,1771975838850,-500.0,0.00014792,2]
[406616019,1771975838860,-500.0,0.00014792,2]
[406616020,1771975838870,-500.0,0.00014792,2]
[406616021,1771975838880,-500.0,0.00014792,2]
[406616022,1771975838890,-500.0,0.00014792,2]
[406616023,1771975838900,-500.0,0.00014792,2]
[406616024,1771975838912,-500.0,0.00014792,2]
[406616025,1771975838921,-500.0,0.00014794,2]
[406616026,1771975838932,-500.0,0.00014794,2]
[406616027,1771975838942,-500.0,0.00014794,2]
[406616028,1771975838952,-510.93657917,0.00014794,2]
[406616029,1771975838961,-150.0,0.00014794,2]
[406616030,1771975838971,-500.0,0.00014794,2]
[406616031,1771975838981,-500.0,0.00014794,2]
[406616032,1771975838991,-500.0,0.00014794,2]
[406616033,1771975839001,-219.18999347,0.00014794,2]
[406616034,1771975839010,-175.88273066,0.00014794,2]
[406616035,1771975839020,-297.9799651,0.00014794,2]
[406616036,1771975839030,-500.0,0.00014794,2]
[406616037,1771975839040,-500.0,0.00014794,2]
[406616038,1771975839050,-150.0,0.00014794,2]
[406616039,1771975839062,-234.50873712,0.00014794,2]
[406616040,1771975839073,-150.0,0.00014794,2]
[406616041,1771975839083,-233.86832009,0.00014794,2]
[406616042,1771975839094,-243.49371462,0.00014794,2]
[406616043,1771975839103,-500.0,0.00014794,2]
[406616044,1771975839114,-543.0,0.00014794,2]
[406616045,1771975839123,-500.0,0.00014794,2]
[406616046,1771975839133,-692.0,0.00014846,2]
[406616047,1771975839143,-503.10086725,0.00014848,2]
[406616048,1771975839152,-500.0,0.00014848,2]
[406616049,1771975839162,-500.0,0.00014848,2]
[406616050,1771975839172,-150.0,0.00014848,2]
[406616051,1771975839182,-500.0,0.00014848,2]
[406616052,1771975839191,-500.0,0.00014849,2]
[406616053,1771975839201,-500.0,0.00014849,2]
[406616054,1771975839210,-578.01412765,0.00014849,2]
[406616055,1771975839220,-500.0,0.00014849,2]
[406616056,1771975839229,-150.0,0.00014849,2]
[406616057,1771975839239,-284.02894359,0.00014849,2]
[406616058,1771975839248,-348.35899652,0.00014849,2]
[406616059,1771975839258,-543.0,0.00014849,2]
[406616060,1771975839267,-500.0,0.00014849,2]
[406616061,1771975839276,-692.0,0.00014901,2]
[406616062,1771975839286,-500.0,0.00014903,2]
[406616063,1771975839299,-500.0,0.00014903,2]
[406616064,1771975839309,-159.82740647,0.00014903,2]
[406616065,1771975839319,-500.0,0.00014903,2]
[406616066,1771975839328,-500.0,0.00014904,2]
[406616067,1771975839338,-500.0,0.00014904,2]
[406616068,1771975839348,-500.0,0.00014904,2]
[406616069,1771975839358,-150.0,0.00014904,2]
[406616070,1771975839368,-543.0,0.00014904,2]
[406616071,1771975839377,-500.0,0.00014904,2]
[406616072,1771975839386,-692.0,0.00014955,2]
[406616073,1771975839395,-500.0,0.00014958,2]
[406616074,1771975839405,-500.0,0.00014958,2]
[406616075,1771975839414,-500.0,0.00014958,2]
[406616076,1771975839422,-500.0,0.00014958,2]
[406616077,1771975839431,-500.0,0.00014958,2]
[406616078,1771975839441,-500.0,0.00014958,2]
[406616079,1771975839450,-174.49483023,0.00014958,2]
[406616080,1771975839459,-150.0,0.00014958,2]
[406616081,1771975839470,-500.0,0.00014959,2]
[406616082,1771975839479,-543.0,0.00014959,2]
[406616084,1771975839488,-500.0,0.00014959,2]
[406616086,1771975839498,-1892.02102247,0.00014968,2]
[406616087,1771975839508,-7215.62,0.00015,2]
[406616088,1771975839518,-692.0,0.0001501,2]
[406616089,1771975839531,-500.0,0.00015013,2]
[406616090,1771975839540,-500.0,0.00015013,2]
[406616092,1771975839550,-500.0,0.00015013,2]
[406616093,1771975839561,-500.0,0.00015013,2]
[406616094,1771975839571,-500.0,0.00015013,2]
[406616095,1771975839581,-76.34280416,0.00015013,2]
[406616096,1771975840198,-139.61079767,0.00015013,2]
[406616097,1771975840209,-543.0,0.00015014,2]
[406616098,1771975840218,-66.96920233,0.00015014,2]
[406616099,1771975840242,-433.03079767,0.00015014,2]
[406616100,1771975840252,-692.0,0.00015065,2]
[406616101,1771975840261,-500.0,0.00015065,2]
[406616102,1771975840270,-500.0,0.00015065,2]
[406616103,1771975840284,-500.0,0.00015065,2]
[406616105,1771975840294,-138.15290665,0.00015065,2]
[406616121,1771975842934,-227.44844559,0.0004195,120]
[406616122,1771975843044,-587.9756,0.0004195,120]
[406616123,1771975843154,-587.9756,0.0004195,120]
[406616124,1771975843264,-587.9756,0.0004195,120]
[406616128,1771975843375,-587.9756,0.0004195,120]
[406616132,1771975843484,-587.9756,0.0004195,120]
[406616133,1771975843588,-587.9756,0.0004195,120]
[406616134,1771975843695,-587.9756,0.0004195,120]
[406616135,1771975843806,-983.16726767,0.0004195,118]
[406616136,1771975843915,-349.8188,0.0004195,120]
[406616137,1771975844024,-177.75581688,0.0004195,30]
[406616138,1771975844132,-415.28600506,0.0004195,120]
[406616139,1771975844241,-261.28889085,0.0004195,120]
[406616140,1771975844349,-323.52369298,0.0004195,120]
[406616141,1771975844456,-328.47754512,0.0004195,120]
[406616142,1771975844559,-415.28600506,0.0004195,120]
[406616143,1771975844668,-323.52369298,0.0004195,120]
[406616144,1771975844773,-261.28889085,0.0004195,120]
[406616145,1771975844880,-328.47754512,0.0004195,120]
[406616146,1771975844989,-261.28889085,0.0004195,120]
[406616147,1771975845098,-415.28600506,0.0004195,120]
[406616148,1771975845335,-323.52369298,0.0004195,120]
[406616149,1771975845447,-328.47754512,0.0004195,120]
[406616150,1771975845566,-328.47754512,0.0004195,120]
[406616152,1771975845684,-323.52369298,0.0004195,120]
[406616153,1771975845792,-261.28889085,0.0004195,120]
[406616154,1771975845903,-415.28600506,0.0004195,120]
[406616155,1771975846014,-328.47754512,0.0004195,120]
[406616156,1771975846123,-261.28889085,0.0004195,120]
[406616157,1771975846231,-323.52369298,0.0004195,120]
[406616158,1771975846336,-415.28600506,0.0004195,120]
[406616159,1771975846439,-261.28889085,0.0004195,120]
[406616160,1771975846546,-328.47754512,0.0004195,120]
[406616161,1771975846652,-323.52369298,0.0004195,120]
[406616162,1771975846756,-415.28600506,0.0004195,120]
[406616163,1771975846863,-261.28889085,0.0004195,120]
[406616164,1771975846968,-328.47754512,0.0004195,120]
[406616165,1771975847077,-323.52369298,0.0004195,120]
[406616166,1771975847187,-261.28889085,0.0004195,120]
[406616167,1771975847297,-415.28600506,0.0004195,120]
[406616168,1771975847406,-323.52369298,0.0004195,120]
[406616169,1771975847514,-328.47754512,0.0004195,120]
[406616170,1771975847615,-261.28889085,0.0004195,120]
[406616171,1771975847723,-415.28600506,0.0004195,120]
[406616172,1771975847836,-328.47754512,0.0004195,120]
[406616173,1771975847946,-323.52369298,0.0004195,120]
[406616174,1771975848051,-261.28889085,0.0004195,120]
[406616175,1771975848157,-415.28600506,0.0004195,120]
[406616176,1771975848268,-323.52369298,0.0004195,120]
[406616177,1771975848381,-328.47754512,0.0004195,120]
[406616178,1771975848489,-415.28600506,0.0004195,120]
[406616179,1771975848594,-261.28889085,0.0004195,120]
[406616180,1771975848703,-323.52369298,0.0004195,120]
[406616181,1771975848808,-328.47754512,0.0004195,120]
[406616182,1771975848916,-415.28600506,0.0004195,120]
[406616183,1771975849033,-323.52369298,0.0004195,120]
[406616184,1771975849151,-261.28889085,0.0004195,120]
[406616185,1771975849264,-328.47754512,0.0004195,120]
[406616186,1771975849380,-323.52369298,0.0004195,120]
[406616187,1771975849491,-415.28600506,0.0004195,120]
[406616188,1771975849598,-261.28889085,0.0004195,120]
[406616189,1771975849703,-415.28600506,0.0004195,120]
[406616190,1771975849811,-328.47754512,0.0004195,120]
[406616191,1771975849918,-261.28889085,0.0004195,120]
[406616192,1771975850030,-323.52369298,0.0004195,120]
[406616193,1771975850136,-415.28600506,0.0004195,120]
[406616194,1771975850245,-328.47754512,0.0004195,120]
[406616195,1771975850361,-323.52369298,0.0004195,120]
[406616196,1771975850475,-328.47754512,0.0004195,120]
[406616197,1771975850584,-207.64300251,0.0004195,120]
[406616198,1771975850696,-261.28889079,0.0004195,120]
[406616199,1771975850803,-207.64300251,0.0004195,120]
[406616200,1771975850912,-213.60556023,0.0004195,120]
[406616201,1771975851021,-1538.11257087,0.0004195,120]
[406616202,1771975851131,-151.0,0.0004195,120]
[406616203,1771975851241,-151.0,0.0004195,120]
[406616204,1771975851344,-151.0,0.0004195,120]
[406616205,1771975851569,-151.0,0.0004195,120]
[406616206,1771975851670,-151.0,0.0004195,120]
[406616207,1771975851773,-151.0,0.0004195,120]
[406616208,1771975851873,-151.0,0.0004195,120]
[406616209,1771975851976,-151.0,0.0004195,120]
[406616210,1771975852078,-228.068731,0.0004195,120]
[406616211,1771975852181,-283.812908,0.0004195,40]
[406616212,1771975852290,-283.812908,0.0004195,40]
[406616213,1771975852395,-158.155989,0.0004195,120]
[406616214,1771975852499,-174.66406178,0.0004195,120]
[406616215,1771975852607,-151.0,0.0004195,120]
[406616216,1771975852711,-151.0,0.0004195,120]
[406616217,1771975852814,-151.0,0.0004195,120]
[406616218,1771975852917,-151.0,0.0004195,120]
[406616219,1771975853020,-151.0,0.0004195,120]
[406616220,1771975853135,-151.0,0.0004195,120]
[406616221,1771975853243,-151.0,0.0004195,120]
[406616222,1771975853349,-151.0,0.0004195,120]
[406616223,1771975853456,-151.0,0.0004195,120]
[406616224,1771975853571,-151.0,0.0004195,120]
[406616225,1771975853680,-151.0,0.0004195,120]
[406616226,1771975853784,-151.0,0.0004195,120]
[406616227,1771975853886,-151.0,0.0004195,120]
[406616228,1771975853992,-151.0,0.0004195,120]
[406616229,1771975854097,-151.0,0.0004195,120]
[406616230,1771975854203,-151.0,0.0004195,120]
[406616231,1771975854310,-151.0,0.0004195,120]
[406616232,1771975854414,-253.042038,0.0004195,120]
[406616233,1771975854522,-151.0,0.0004195,120]
[406616234,1771975854624,-151.0,0.0004195,120]
[406616235,1771975854726,-228.358026,0.0004195,120]
[406616236,1771975854829,-288.14224351,0.0004195,120]
[406616237,1771975854928,-704.93458852,0.0004195,120]
[406616238,1771975855031,-192.09482901,0.0004195,120]
[406616239,1771975855140,-221.670702,0.0004195,120]
[406616240,1771975855252,-163.24494897,0.0004195,120]
[406616241,1771975855359,-192.09482901,0.0004195,120]
[406616242,1771975855468,-192.094829,0.0004195,120]
[406616243,1771975855576,-150.0,0.0004195,30]
[406616244,1771975855684,-226.4115357,0.0004195,30]
[406616245,1771975855788,-186.3738701,0.0004195,30]
[406616246,1771975855892,-203.7696508,0.0004195,30]
[406616247,1771975856001,-530.0,0.0004195,120]
[406616248,1771975856111,-150.0,0.0004195,30]
[406616249,1771975856225,-150.0,0.0004195,30]
[406616250,1771975856332,-185.9670835,0.0004195,30]
[406616251,1771975856437,-150.0,0.0004195,30]
[406616252,1771975856545,-186.3738701,0.0004195,30]
[406616253,1771975856654,-150.0,0.0004195,30]
[406616254,1771975856759,-186.3738701,0.0004195,30]
[406616255,1771975856859,-150.0,0.0004195,30]
[406616256,1771975856957,-186.3738701,0.0004195,30]
[406616257,1771975857055,-276.85211885,0.0004195,120]
[406616258,1771975857151,-291.33204544,0.0004195,120]
[406616259,1771975857247,-312.38637316,0.0004195,120]
[406616260,1771975857345,-150.0,0.0004195,30]
[406616261,1771975857444,-187.7033832,0.0004195,30]
[406616262,1771975857658,-664.31208649,0.0004195,30]
[406616263,1771975857758,-150.0,0.0004195,30]
[406616264,1771975857857,-591.73078844,0.0004195,120]
[406616265,1771975857955,-150.0,0.0004195,30]
[406616266,1771975858053,-549.91665257,0.0004195,60]
[406616267,1771975858146,-551.04881169,0.0004195,120]
[406616268,1771975858242,-456.10744664,0.0004195,120]
[406616269,1771975858340,-1016.50222889,0.0004195,120]
[406616270,1771975858436,-514.3537414,0.0004195,30]
[406616271,1771975858538,-279.20527553,0.0004195,120]
[406616272,1771975858635,-517.68254118,0.0004195,30]
[406616273,1771975858737,-500.0,0.0004195,120]
[406616274,1771975858835,-332.52233661,0.0004195,120]
[406616275,1771975858933,-233.89475711,0.0004195,120]
[406616276,1771975859032,-232.89123968,0.0004195,30]
[406616277,1771975859130,-452.37211771,0.0004195,120]
[406616278,1771975859230,-3002.42444273,0.0004195,120]
[406616279,1771975859335,-554.57195211,0.0004195,120]
[406616280,1771975859435,-228.54177647,0.0004195,120]
[406616281,1771975859533,-335.32035279,0.0004195,120]
[406616282,1771975859627,-188.45636933,0.0004195,30]
[406616283,1771975859723,-367.25865236,0.0004195,120]
[406616284,1771975859816,-207.01325353,0.0004195,120]
[406616285,1771975859913,-171.96617163,0.0004195,120]
[406616286,1771975860013,-891.31286252,0.0004195,60]
[406616287,1771975860113,-553.35533913,0.0004195,30]
[406616288,1771975860215,-448.59503762,0.0004195,30]
[406616289,1771975860320,-272.45681738,0.0004195,120]
[406616290,1771975860423,-513.48281517,0.0004195,120]
[406616291,1771975860524,-374.69125757,0.0004195,120]
[406616292,1771975860626,-364.48979723,0.0004195,120]
[406616293,1771975860727,-1017.81203141,0.0004195,120]
[406616294,1771975860829,-180.58041876,0.0004195,120]
[406616295,1771975860924,-560.49358164,0.0004195,120]
[406616296,1771975861021,-516.63069392,0.0004195,120]
[406616297,1771975861122,-432.46570174,0.0004195,30]
[406616298,1771975861224,-483.37743271,0.0004195,120]
[406616299,1771975861323,-475.3737468,0.0004195,60]
[406616300,1771975861424,-165.57009257,0.0004195,120]
[406616301,1771975861521,-11504.68016901,0.0004195,120]
[406616302,1771975861617,-344.64984241,0.0004195,30]
[406616303,1771975861724,-358.14650089,0.0004195,120]
[406616304,1771975861819,-830.71473946,0.0004195,30]
[406616305,1771975861918,-713.28625825,0.0004195,30]
[406616306,1771975862016,-552.63860136,0.0004195,33]
[406616307,1771975862113,-159.50297267,0.0004195,30]
[406616308,1771975862210,-200.0,0.0004195,120]
[406616309,1771975862311,-161.49989611,0.0004195,120]
[406616310,1771975862410,-500.43708557,0.0004195,120]
[406616311,1771975862507,-988.34809204,0.0004195,120]
[406616312,1771975862607,-157.50418786,0.0004195,120]
[406616313,1771975862708,-595.1699299,0.0004195,30]
[406616314,1771975862808,-150.0,0.0004195,30]
[406616315,1771975864589,845.0,0.0004195,30]
[406616316,1771975864693,2783.5,0.0004195,30]
[406616317,1771975864707,-400.0,0.00014538,2]
[406616318,1771975865717,-500.0,0.00013698,2]
[406616319,1771975865727,-500.0,0.00014328,2]
[406616320,1771975865738,-500.0,0.00014478,2]
[406616321,1771975865749,-151.15604423,0.00014538,2]
[406616322,1771975865759,-501.01,0.00014739,2]
[406616323,1771975865770,-361.84709335,0.00015065,2]
[406616324,1771975865780,-500.0,0.00015065,2]
[406616325,1771975865791,-500.0,0.00015065,2]
[406616326,1771975865801,-500.0,0.00015065,2]
[406616327,1771975865811,-500.0,0.00015065,2]
[406616328,1771975865822,-500.0,0.00015065,2]
[406616329,1771975865834,-529.92149096,0.00015065,2]
[406616330,1771975866000,-500.0,0.00015065,2]
[406616331,1771975866021,-500.0,0.00015065,2]
[406616332,1771975866032,-500.0,0.00015065,2]
[406616333,1771975866041,-500.0,0.00015065,2]
[406616334,1771975866050,-500.0,0.00015065,2]
[406616335,1771975866060,-500.0,0.00015066,2]
[406616336,1771975866069,-500.0,0.00015066,2]
[406616337,1771975866081,-500.0,0.00015066,2]
[406616338,1771975866090,-500.0,0.00015066,2]
[406616339,1771975866099,-500.0,0.00015067,2]
[406616340,1771975866109,-501.87464254,0.00015067,2]
[406616341,1771975866118,-500.0,0.00015067,2]
[406616342,1771975866128,-500.0,0.00015067,2]
[406616343,1771975866138,-500.0,0.00015067,2]
[406616344,1771975866148,-210.85850906,0.00015067,2]
[406616345,1771975866157,-500.0,0.00015067,2]
[406616346,1771975866166,-420.55296618,0.00015067,2]
[406616347,1771975866180,-79.44703382,0.00015067,2]
[406616348,1771975866189,-500.0,0.00015067,2]
[406616349,1771975866198,-361.8308362,0.00015067,2]
[406616350,1771975888787,-1016.14640754,0.0001314,2]
[406616351,1771975918224,526.2944,0.0004195,120]
[406616352,1771975918326,526.2944,0.0004195,120]
[406616353,1771975918437,526.2944,0.0004195,120]
[406616354,1771975918542,526.2944,0.0004195,120]
[406616355,1771975931365,5000.0,0.0004195,30]
[406616356,1771975987726,208.7546435,0.0004195,120]
[406616357,1771976017323,575.913,0.0004195,120]
[406616358,1771976034781,3153.92,0.00012001,2]
[406616359,1771976052673,151.0,0.0004195,120]
[406616360,1771976052821,151.0,0.0004195,120]
[406616361,1771976053019,151.0,0.0004195,120]
[406616362,1771976053344,151.0,0.0004195,120]
[406616363,1771976053610,151.0,0.0004195,120]
[406616364,1771976053885,180.083511,0.0004195,120]
[406616365,1771976074791,212.457628,0.0004195,120]
[406616366,1771976074933,444.803094,0.0004195,120]
[406616367,1771976075086,212.457628,0.0004195,120]
[406616368,1771976075278,444.803094,0.0004195,120]
[406616369,1771976075419,212.457628,0.0004195,120]
[406616370,1771976075564,444.803094,0.0004195,120]
[406616371,1771976075704,212.457628,0.0004195,120]
[406616372,1771976075850,444.803094,0.0004195,120]
[406616373,1771976075994,212.457628,0.0004195,120]
[406616374,1771976076148,444.803094,0.0004195,120]
[406616375,1771976076283,212.457628,0.0004195,120]
[406616376,1771976076467,444.803094,0.0004195,120]
[406616377,1771976076572,212.457628,0.0004195,120]
[406616378,1771976076754,444.803094,0.0004195,120]
[406616379,1771976076862,212.457628,0.0004195,120]
[406616380,1771976077058,444.803094,0.0004195,120]
[406616381,1771976077177,212.457628,0.0004195,120]
[406616382,1771976077349,444.803094,0.0004195,120]
[406616383,1771976077460,212.457628,0.0004195,120]
[406616384,1771976077680,444.803094,0.0004195,120]
[406616385,1771976077785,212.457628,0.0004195,120]
[406616386,1771976077973,444.803094,0.0004195,120]
[406616387,1771976078078,212.457628,0.0004195,120]
[406616388,1771976078265,444.803094,0.0004195,120]
[406616389,1771976078372,212.457628,0.0004195,120]
[406616390,1771976078554,444.803094,0.0004195,120]
[406616391,1771976078657,212.457628,0.0004195,120]
[406616392,1771976078838,444.803094,0.0004195,120]
[406616393,1771976078945,212.457628,0.0004195,120]
[406616394,1771976079316,212.457628,0.0004195,120]
[406616395,1771976079425,444.803094,0.0004195,120]
[406616396,1771976079546,212.457628,0.0004195,120]
[406616397,1771976079667,444.803094,0.0004195,120]
[406616398,1771976079784,212.457628,0.0004195,120]
[406616399,1771976079935,444.803094,0.0004195,120]
[406616400,1771976080069,212.457628,0.0004195,120]
[406616401,1771976080350,212.457626,0.0004195,120]
[406616402,1771976080469,444.803094,0.0004195,120]
[406616403,1771976080759,444.803094,0.0004195,120]
[406616404,1771976081031,444.803086,0.0004195,120]
[406616405,1771976094566,151.0,0.0004195,120]
[406616406,1771976094993,151.0,0.0004195,120]
[406616407,1771976095290,151.0,0.0004195,120]
[406616408,1771976095554,151.0,0.0004195,120]
[406616409,1771976095849,151.0,0.0004195,120]
[406616410,1771976096204,151.0,0.0004195,120]
[406616411,1771976096503,151.0,0.0004195,120]
[406616412,1771976096757,151.0,0.0004195,120]
[406616413,1771976097023,151.0,0.0004195,120]
[406616414,1771976097303,151.0,0.0004195,120]
[406616415,1771976097604,151.0,0.0004195,120]
[406616416,1771976097983,151.0,0.0004195,120]
[406616417,1771976098263,151.0,0.0004195,120]
[406616418,1771976098574,228.780526,0.0004195,120]
[406616419,1771976105998,285.458675,0.0004195,120]
[406616420,1771976106283,285.458675,0.0004195,120]
[406616421,1771976106561,285.458675,0.0004195,120]
[406616422,1771976106847,285.458675,0.0004195,120]
[406616423,1771976107115,151.0,0.0004195,120]
[406616424,1771976107233,285.458675,0.0004195,120]
[406616425,1771976107411,151.0,0.0004195,120]
[406616426,1771976107516,285.458675,0.0004195,120]
[406616427,1771976107701,151.0,0.0004195,120]
[406616428,1771976107809,285.458675,0.0004195,120]
[406616429,1771976107988,151.0,0.0004195,120]